fUST/lending_fUST_20251121
["ID","MTS","AMOUNT","RATE_DAILY","PERIOD"]
[394534100,1763674944183,151.0,0.00038536,50]
[394534101,1763674944473,151.0,0.00038536,50]
[394534102,1763674944761,151.0,0.00038536,50]
[394534103,1763674945048,151.0,0.00038536,50]
[394534104,1763674945349,151.0,0.00038536,50]
[394534105,1763674945640,151.0,0.00038536,50]
[394534106,1763674945946,151.0,0.00038536,50]
[394534107,1763674946235,151.0,0.00038536,50]
[394534108,1763674946532,254.225741,0.00038536,50]
[394534110,1763674949181,151.0,0.00038536,50]
[394534111,1763674949472,151.0,0.00038536,50]
[394534112,1763674949753,151.0,0.00038536,50]
[394534113,1763674950044,151.0,0.00038536,50]
[394534114,1763674950540,151.0,0.00038536,50]
[394534115,1763674950856,230.336584,0.00038536,50]
[394534116,1763674951458,219.387773,0.00038536,50]
[394534117,1763674951553,232.733576,0.00038536,50]
[394534118,1763674951725,219.387773,0.00038536,50]
[394534119,1763674951860,232.733576,0.00038536,50]
[394534120,1763674952039,219.387773,0.00038536,50]
[394534121,1763674952143,232.733576,0.00038536,50]
[394534122,1763674952643,219.387773,0.00038536,50]
[394534123,1763674952695,232.733576,0.00038536,50]
[394534124,1763674952747,219.387773,0.00038536,50]
[394534125,1763674952799,232.733576,0.00038536,50]
[394534126,1763674952906,219.387773,0.00038536,50]
[394534127,1763674953037,232.733576,0.00038536,50]
[394534128,1763674953194,219.387773,0.00038536,50]
[394534129,1763674953324,232.733576,0.00038536,50]
[394534130,1763674953488,219.387773,0.00038536,50]
[394534131,1763674953616,232.733576,0.00038536,50]
[394534132,1763674953812,219.387773,0.00038536,50]
[394534133,1763674953906,232.733576,0.00038536,50]
[394534134,1763674954101,219.387773,0.00038536,50]
[394534135,1763674954204,232.733576,0.00038536,50]
[394534136,1763674954388,219.387773,0.00038536,50]
[394534137,1763674954496,232.733576,0.00038536,50]
[394534138,1763674954674,219.387773,0.00038536,50]
[394534139,1763674954785,232.733576,0.00038536,50]
[394534140,1763674955008,219.387773,0.00038536,50]
[394534141,1763674955075,232.733576,0.00038536,50]
[394534142,1763674955300,219.387773,0.00038536,50]
[394534143,1763674955373,232.733576,0.00038536,50]
[394534144,1763674955664,232.733576,0.00038536,50]
[394534145,1763674955888,219.387773,0.00038536,50]
[394534146,1763674956006,232.733576,0.00038536,50]
[394534147,1763674956173,219.387773,0.00038536,50]
[394534148,1763674956321,232.733576,0.00038536,50]
[394534149,1763674956469,219.387773,0.00038536,50]
[394534150,1763674956607,232.733576,0.00038536,50]
[394534151,1763674956812,219.387773,0.00038536,50]
[394534152,1763674957097,219.387773,0.00038536,50]
[394534153,1763674957205,232.733576,0.00038536,50]
[394534154,1763674957374,219.387778,0.00038536,50]
[394534155,1763674957483,232.733582,0.00038536,50]
[394534157,1763674993843,207.725646,0.00038536,50]
[394534158,1763674994143,207.725646,0.00038536,50]
[394534159,1763674994446,207.725646,0.00038536,50]
[394534160,1763674994735,207.725646,0.00038536,50]
[394534161,1763674995035,207.725646,0.00038536,50]
[394534162,1763674995311,207.725646,0.00038536,50]
[394534163,1763674995598,207.725646,0.00038536,50]
[394534164,1763674995886,207.725646,0.00038536,50]
[394534165,1763674996170,207.725646,0.00038536,50]
[394534167,1763674996480,207.725646,0.00038536,50]
[394534168,1763674996780,207.725646,0.00038536,50]
[394534169,1763674997172,207.725646,0.00038536,50]
[394534170,1763674997378,207.725646,0.00038536,50]
[394534171,1763674997654,207.725646,0.00038536,50]
[394534172,1763674997940,207.725646,0.00038536,50]
[394534173,1763674998231,207.725646,0.00038536,50]
[394534174,1763674998549,207.725646,0.00038536,50]
[394534175,1763674998858,207.725646,0.00038536,50]
[394534176,1763674999128,207.725646,0.00038536,50]
[394534177,1763674999407,207.725646,0.00038536,50]
[394534178,1763675015802,151.0,0.00038534,50]
[394534179,1763675016223,151.0,0.00038534,50]
[394534180,1763675016501,292.178891,0.00038534,50]
[394534181,1763675018809,151.0,0.00038534,50]
[394534182,1763675019108,263.498483,0.00038534,50]
[394534186,1763675050812,151.0,0.00038534,50]
[394534187,1763675051110,151.0,0.00038534,50]
[394534188,1763675051402,151.0,0.00038534,50]
[394534189,1763675051693,151.0,0.00038534,50]
[394534190,1763675051994,151.0,0.00038534,50]
[394534191,1763675052277,151.0,0.00038534,50]
[394534192,1763675052564,151.0,0.00038534,50]
[394534193,1763675052862,151.0,0.00038534,50]
[394534194,1763675053315,151.0,0.00038534,50]
[394534195,1763675053724,151.0,0.00038534,50]
[394534196,1763675054018,190.494555,0.00038534,50]
[394534197,1763675063617,151.0,0.00038534,50]
[394534198,1763675063911,151.0,0.00038534,50]
[394534199,1763675064201,151.0,0.00038534,50]
[394534200,1763675064531,151.0,0.00038534,50]
[394534201,1763675064827,151.0,0.00038534,50]
[394534202,1763675065121,151.0,0.00038534,50]
[394534203,1763675065306,159.527509,0.00038534,50]
[394534204,1763675065419,151.0,0.00038534,50]
[394534205,1763675065719,159.527509,0.00038534,50]
[394534206,1763675065759,151.0,0.00038534,50]
[394534207,1763675065805,159.527509,0.00038534,50]
[394534208,1763675066020,151.0,0.00038534,50]
[394534209,1763675066111,159.527509,0.00038534,50]
[394534210,1763675066334,151.0,0.00038534,50]
[394534211,1763675066392,159.527509,0.00038534,50]
[394534212,1763675066645,151.0,0.00038534,50]
[394534213,1763675066710,159.527509,0.00038534,50]
[394534214,1763675066955,151.0,0.00038534,50]
[394534215,1763675066995,159.527509,0.00038534,50]
[394534216,1763675067253,151.0,0.00038534,50]
[394534217,1763675067292,159.527509,0.00038534,50]
[394534218,1763675067577,158.766102,0.00038534,50]
[394534219,1763675067614,159.527509,0.00038534,50]
[394534220,1763675067877,159.527509,0.00038534,50]
[394534221,1763675068170,159.527509,0.00038534,50]
[394534222,1763675068446,159.527509,0.00038534,50]
[394534223,1763675068738,159.527509,0.00038534,50]
[394534224,1763675069191,159.527509,0.00038534,50]
[394534225,1763675069478,159.527509,0.00038534,50]
[394534226,1763675069991,159.527509,0.00038534,50]
[394534227,1763675070275,159.527509,0.00038534,50]
[394534228,1763675070563,159.527509,0.00038534,50]
[394534229,1763675070857,159.527509,0.00038534,50]
[394534230,1763675071140,159.527504,0.00038534,50]
[394534231,1763675088770,151.0,0.00038534,50]
[394534232,1763675089073,151.0,0.00038534,50]
[394534233,1763675089383,151.0,0.00038534,50]
[394534234,1763675089671,151.0,0.00038534,50]
[394534235,1763675090287,151.0,0.00038534,50]
[394534236,1763675090579,151.0,0.00038534,50]
[394534237,1763675090893,151.0,0.00038534,50]
[394534238,1763675091187,151.0,0.00038534,50]
[394534239,1763675091476,151.0,0.00038534,50]
[394534240,1763675091765,151.0,0.00038534,50]
[394534241,1763675092084,151.0,0.00038534,50]
[394534242,1763675092370,151.0,0.00038534,50]
[394534243,1763675092669,151.0,0.00038534,50]
[394534244,1763675092961,243.621417,0.00038534,50]
[394534246,1763675106381,461.51769127,0.00038534,50]
[394534247,1763675112491,224.05250825,0.00038534,50]
[394534248,1763675199128,-223.02823501,6.02e-05,2]
[394534249,1763675230089,-212.47040127,6.02e-05,2]
[394534384,1763675254289,2000.0,0.00038534,20]
[394534736,1763675273663,2000.0,0.00038534,20]
[394534737,1763675293265,2000.0,0.00038534,20]
[394534961,1763675312893,2000.0,0.00038524,20]
[394534962,1763675332371,2000.0,0.00038524,20]
[394534963,1763675343565,374.66893473,0.0003,120]
[394534964,1763675350074,-12.72374282,6.02e-05,2]
[394534965,1763675350095,-224.4945991,6.02e-05,2]
[394534966,1763675350116,-742.0,6.02e-05,2]
[394534967,1763675350143,-3741.97806307,6.021e-05,2]
[394534968,1763675352270,2000.0,0.00038524,20]
[394534969,1763675371946,2000.0,0.00038524,20]
[394534970,1763675391430,2000.0,0.00038524,20]
[394534971,1763675408977,1765.43095149,0.00038524,50]
[394534972,1763675410912,2000.0,0.00038524,20]
[394534974,1763675412119,1527.63191913,0.00038524,50]
[394534975,1763675420346,1888.0,0.00038524,50]
[394534976,1763675420978,1957.856,0.00038524,50]
[394534977,1763675430423,2000.0,0.00038524,20]
[394535017,1763675436950,242.75096138,0.00038524,20]
[394535023,1763675438356,-994.06474417,6.021e-05,2]
[394535024,1763675438417,-2681.31189416,6.021e-05,2]
[394535025,1763675438426,-1200.0,6.716e-05,2]
[394535026,1763675438435,-300.0,6.716e-05,2]
[394535027,1763675438443,-1200.0,6.716e-05,2]
[394535028,1763675438453,-246.16001777,6.717e-05,2]
[394535029,1763675438462,-497.51912829,6.717e-05,2]
[394535030,1763675438472,-1740.87820152,6.717e-05,2]
[394535031,1763675438482,-501.25164954,6.717e-05,2]
[394535032,1763675438491,-13818.389094,6.82e-05,2]
[394535033,1763675438501,-300.0,6.956e-05,2]
[394535034,1763675438511,-300.0,6.956e-05,2]
[394535035,1763675438521,-300.0,6.956e-05,2]
[394535036,1763675438530,-300.0,6.956e-05,2]
[394535037,1763675438540,-300.0,6.956e-05,2]
[394535038,1763675438549,-300.0,6.956e-05,2]
[394535039,1763675438559,-300.0,6.956e-05,2]
[394535040,1763675438568,-300.0,6.956e-05,2]
[394535041,1763675438577,-300.0,6.956e-05,2]
[394535042,1763675438587,-300.0,6.956e-05,2]
[394535043,1763675438596,-300.0,6.956e-05,2]
[394535044,1763675438607,-300.0,6.956e-05,2]
[394535045,1763675438616,-300.0,6.956e-05,2]
[394535046,1763675438626,-300.0,6.956e-05,2]
[394535047,1763675438638,-300.0,6.956e-05,2]
[394535048,1763675438647,-1740.87820152,7.004e-05,2]
[394535049,1763675438657,-600.0,7.094e-05,2]
[394535050,1763675438667,-458.785,7.094e-05,2]
[394535051,1763675438676,-10946.17619495,7.213e-05,2]
[394535061,1763675440659,-8153.84380505,7.213e-05,2]
[394535062,1763675440669,-1740.87820152,7.29e-05,2]
[394535063,1763675440679,-497.51912829,7.362e-05,2]
[394535064,1763675440689,-501.25164954,7.362e-05,2]
[394535065,1763675440699,-420.0,7.388e-05,2]
[394535066,1763675440708,-1680.0,7.388e-05,2]
[394535067,1763675440717,-246.16001777,7.401e-05,2]
[394535068,1763675440726,-1740.87820152,7.577e-05,2]
[394535069,1763675440736,-232.40234184,7.624e-05,2]
[394535070,1763675440745,-231.04314681,7.624e-05,2]
[394535071,1763675440858,-955.08573261,7.66e-05,2]
[394535072,1763675440876,-344.03847367,7.728e-05,2]
[394535073,1763675440887,-619.26925261,7.728e-05,2]
[394535074,1763675440896,-1100.92311576,7.728e-05,2]
[394535075,1763675440906,-708.28189029,7.787e-05,2]
[394535076,1763675440915,-1095.8040691,7.787e-05,2]
[394535077,1763675440928,-163.36373586,7.787e-05,2]
[394535078,1763675440942,-334.67626414,7.787e-05,2]
[394535079,1763675442137,169.58026849,0.00038524,20]
[394535109,1763675446696,-58.81367491,7.787e-05,2]
[394535110,1763675446706,-1694.30632509,7.787e-05,2]
[394535111,1763675449914,2000.0,0.00038524,20]
[394535113,1763675465855,1531.19915679,0.00038524,120]
[394535114,1763675470748,2000.0,0.00038524,20]
[394535115,1763675472597,245.64,0.00017111,30]
[394535116,1763675473223,491.28,0.00017529,30]
[394535118,1763675548687,1000.0,0.00038524,30]
[394535119,1763675549006,1000.0,0.00038524,30]
[394535120,1763675549413,1000.0,0.00038524,30]
[394535121,1763675549767,1000.0,0.00038524,30]
[394535122,1763675550167,1956.859126,0.00038524,30]
[394535124,1763675564532,1769.9,0.00038524,30]
[394535125,1763675575048,244.19,8.2e-05,77]
[394535127,1763675623392,700.0,0.00038548,20]
[394535128,1763675625802,241.62,0.00011612,30]
[394535129,1763675626191,372.46,0.00011895,30]
[394535130,1763675626220,110.79,0.00011895,30]
[394535131,1763675626601,724.87,0.00012179,30]
[394535132,1763675626989,966.49,0.00012462,30]
[394535133,1763675627388,1208.11,0.00012745,30]
[394535134,1763675627792,189.74,0.00013028,30]
[394535135,1763675627817,1260.0,0.00013028,30]
[394535136,1763675628187,1691.36,0.00013311,30]
[394535137,1763675628582,548.64,0.00013595,30]
[394535138,1763675628608,1384.34,0.00013595,30]
[394535139,1763675628984,2115.66,0.00013878,30]
[394535140,1763675629010,58.95,0.00013878,30]
[394535141,1763675629397,2416.21274569,0.00014161,30]
[394535152,1763675703188,398.06352441,0.00038548,30]
[394535153,1763675704368,368.88672526,0.00038548,120]
[394535154,1763675704411,2441.16693507,0.00038548,120]
[394535155,1763675707976,160.0,0.00038548,120]
[394535156,1763675708248,250.0,0.00038548,120]
[394535157,1763675708771,160.0,0.00038548,120]
[394535158,1763675708855,250.0,0.00038548,120]
[394535159,1763675709182,1888.0,0.00038548,50]
[394535160,1763675709550,250.0,0.00038548,120]
[394535161,1763675709594,160.0,0.00038548,120]
[394535162,1763675710183,250.0,0.00038548,120]
[394535163,1763675710785,250.0,0.00038548,120]
[394535164,1763675711230,2500.0,0.00038548,120]
[394535165,1763675711365,500.0,0.00038548,120]
[394535166,1763675711424,250.0,0.00038548,120]
[394535167,1763675712090,500.0,0.00038548,120]
[394535168,1763675712129,250.0,0.00038548,120]
[394535169,1763675712864,500.0,0.00038548,120]
[394535170,1763675712916,250.0,0.00038548,120]
[394535171,1763675713439,500.0,0.00038548,120]
[394535172,1763675713480,250.0,0.00038548,120]
[394535173,1763675714031,500.0,0.00038548,120]
[394535174,1763675714073,250.0,0.00038548,120]
[394535175,1763675714227,151.0,0.00038548,120]
[394535176,1763675714673,500.0,0.00038548,120]
[394535177,1763675714732,250.0,0.00038548,120]
[394535178,1763675715163,153.73080851,0.00038548,120]
[394535179,1763675715303,151.0,0.00038548,120]
[394535180,1763675715395,500.0,0.00038548,120]
[394535181,1763675715516,250.0,0.00038548,120]
[394535182,1763675715576,151.0,0.00038548,120]
[394535183,1763675715899,500.0,0.00038548,120]
[394535184,1763675716154,250.0,0.00038548,120]
[394535185,1763675716219,151.0,0.00038548,120]
[394535186,1763675716528,500.0,0.00038548,120]
[394535187,1763675716600,300.0,0.00038548,30]
[394535188,1763675716808,250.0,0.00038548,120]
[394535189,1763675716875,151.0,0.00038548,120]
[394535190,1763675717187,500.0,0.00038548,120]
[394535191,1763675717415,250.0,0.00038548,120]
[394535192,1763675717473,151.0,0.00038548,120]
[394535193,1763675717721,300.0,0.00038548,30]
[394535194,1763675717785,500.0,0.00038548,120]
[394535195,1763675718044,250.0,0.00038548,120]
[394535196,1763675718105,151.0,0.00038548,120]
[394535197,1763675718411,500.0,0.00038548,120]
[394535198,1763675718635,250.0,0.00038548,120]
[394535199,1763675718919,151.0,0.00038548,120]
[394535200,1763675719016,500.0,0.00038548,120]
[394535201,1763675719227,250.0,0.00038548,120]
[394535202,1763675719333,151.0,0.00038548,120]
[394535203,1763675719601,500.0,0.00038548,120]
[394535204,1763675719820,250.0,0.00038548,120]
[394535205,1763675719922,151.0,0.00038548,120]
[394535206,1763675720531,500.0,0.00038548,120]
[394535207,1763675720590,250.0,0.00038548,120]
[394535208,1763675720674,151.0,0.00038548,120]
[394535209,1763675720827,500.0,0.00038548,120]
[394535210,1763675721015,250.0,0.00038548,120]
[394535211,1763675721128,151.0,0.00038548,120]
[394535212,1763675721485,500.0,0.00038548,120]
[394535213,1763675721629,250.0,0.00038548,120]
[394535214,1763675721856,151.0,0.00038548,120]
[394535215,1763675722090,500.0,0.00038548,120]
[394535216,1763675722246,250.0,0.00038548,120]
[394535217,1763675722444,151.0,0.00038548,120]
[394535218,1763675722998,500.0,0.00038548,120]
[394535219,1763675723134,250.0,0.00038548,120]
[394535220,1763675723336,151.0,0.00038548,120]
[394535221,1763675723409,500.0,0.00038548,120]
[394535222,1763675723471,250.0,0.00038548,120]
[394535223,1763675723739,151.0,0.00038548,120]
[394535224,1763675724075,250.0,0.00038548,120]
[394535225,1763675724417,151.0,0.00038548,120]
[394535226,1763675724490,151.0,0.00038548,120]
[394535227,1763675724684,250.0,0.00038548,120]
[394535228,1763675725141,156.587,0.00038548,120]
[394535229,1763675725534,151.0,0.00038548,120]
[394535230,1763675725587,250.0,0.00038548,120]
[394535231,1763675725791,162.380719,0.00038548,120]
[394535232,1763675725939,250.0,0.00038548,120]
[394535233,1763675726305,151.0,0.00038548,120]
[394535234,1763675726407,168.3888056,0.00038548,120]
[394535235,1763675726555,250.0,0.00038548,120]
[394535236,1763675726913,151.0,0.00038548,120]
[394535237,1763675727055,174.61919141,0.00038548,120]
[394535238,1763675727172,250.0,0.00038548,120]
[394535239,1763675727697,181.08010149,0.00038548,120]
[394535240,1763675727887,250.0,0.00038548,120]
[394535241,1763675728320,187.78006525,0.00038548,120]
[394535242,1763675728591,250.0,0.00038548,120]
[394535243,1763675728974,194.72792766,0.00038548,120]
[394535244,1763675729223,250.0,0.00038548,120]
[394535245,1763675729579,201.93286099,0.00038548,120]
[394535246,1763675729838,250.0,0.00038548,120]
[394535247,1763675730210,209.40437684,0.00038548,120]
[394535248,1763675730489,250.0,0.00038548,120]
[394535249,1763675730925,209.40437684,0.00038548,120]
[394535250,1763675749838,3714.59310892,0.00038548,120]
[394535253,1763675826086,3791.4763007,0.00038548,100]
[394535380,1763675835611,152.92238797,0.00038548,120]
[394536080,1763675932991,176.5,0.00011648,30]
[394536094,1763675933419,353.01,0.00011932,30]
[394536107,1763675933815,495.32725431,0.00012216,30]
[394536109,1763675933843,34.18274569,0.00012216,30]
[394536118,1763675934227,706.02,0.000125,30]
[394536131,1763675934641,882.52,0.00012784,30]
[394536146,1763675935067,1059.03,0.00013069,30]
[394536160,1763675935467,818.24725431,0.00013353,30]
[394536162,1763675935493,417.28274569,0.00013353,30]
[394536177,1763675935921,1412.03,0.00013637,30]
[394536189,1763675936301,1588.54,0.00013921,30]
[394536199,1763675936697,82.14725431,0.00014205,30]
[394536201,1763675936718,1352.35,0.00014205,30]
[394536202,1763675936742,330.54274569,0.00014205,30]
[394537563,1763676003150,470.04091567,0.00038547,30]
[394537564,1763676012026,250.0,0.00038547,120]
[394537565,1763676012649,250.0,0.00038547,120]
[394537566,1763676013248,250.0,0.00038547,120]
[394537567,1763676013450,159.38978209,0.00038547,30]
[394537568,1763676013785,250.0,0.00038547,120]
[394537569,1763676013835,250.0,0.00038547,120]
[394537570,1763676014637,250.0,0.00038547,120]
[394537571,1763676014681,250.0,0.00038547,120]
[394537572,1763676015080,250.0,0.00038547,120]
[394537573,1763676015126,250.0,0.00038547,120]
[394537574,1763676015675,250.0,0.00038547,120]
[394537575,1763676015720,250.0,0.00038547,120]
[394537576,1763676016275,250.0,0.00038547,120]
[394537577,1763676016904,250.0,0.00038547,120]
[394537578,1763676016948,1074.22500949,0.00038547,120]
[394537579,1763676017494,250.0,0.00038547,120]
[394537580,1763676018189,250.0,0.00038547,120]
[394537581,1763676018747,500.0,0.00038547,120]
[394537582,1763676018801,250.0,0.00038547,120]
[394537583,1763676019381,500.0,0.00038547,120]
[394537584,1763676019427,250.0,0.00038547,120]
[394537585,1763676020035,250.0,0.00038547,120]
[394537586,1763676020459,500.0,0.00038547,120]
[394537587,1763676020656,250.0,0.00038547,120]
[394537588,1763676021086,500.0,0.00038547,120]
[394537589,1763676021742,500.0,0.00038547,120]
[394537590,1763676022390,500.0,0.00038547,120]
[394537591,1763676023019,500.0,0.00038547,120]
[394537592,1763676023627,500.0,0.00038547,120]
[394537593,1763676024258,500.0,0.00038547,120]
[394537594,1763676025000,500.0,0.00038547,120]
[394537595,1763676025505,500.0,0.00038547,120]
[394537596,1763676026113,500.0,0.00038547,120]
[394537597,1763676026750,500.0,0.00038547,120]
[394537598,1763676027466,500.0,0.00038547,120]
[394537599,1763676027973,500.0,0.00038547,120]
[394537600,1763676028573,500.0,0.00038547,120]
[394537601,1763676029213,500.0,0.00038547,120]
[394537602,1763676029812,500.0,0.00038547,120]
[394537603,1763676030437,500.0,0.00038547,120]
[394537604,1763676031079,500.0,0.00038547,120]
[394537605,1763676059084,205.636791,0.00038547,40]
[394537606,1763676061529,205.636791,0.00038547,40]
[394537607,1763676152835,150.0,0.00038547,30]
[394537608,1763676163181,150.0,0.00011152,30]
[394537609,1763676163644,261.84,0.00011424,30]
[394537610,1763676164015,14.16,0.00011696,30]
[394537611,1763676164038,378.61,0.00011696,30]
[394537612,1763676164452,523.69,0.00011968,30]
[394537613,1763676164872,654.61,0.0001224,30]
[394537614,1763676165290,785.53,0.00012512,30]
[394537615,1763676165359,886.9,0.00038547,30]
[394537616,1763676165683,916.46,0.00012784,30]
[394537617,1763676166097,1047.38,0.00013056,30]
[394537618,1763676166666,1178.3,0.00013328,30]
[394537619,1763676167067,1290.11900841,0.000136,30]
[394537646,1763676201763,151.0,0.00038547,50]
[394537647,1763676202109,151.0,0.00038547,50]
[394537648,1763676202400,151.0,0.00038547,50]
[394537649,1763676202962,151.0,0.00038547,50]
[394537650,1763676203281,151.0,0.00038547,50]
[394537651,1763676212689,151.0,0.00038547,50]
[394537652,1763676212986,151.0,0.00038547,50]
[394537653,1763676213360,151.0,0.00038547,50]
[394537654,1763676213669,151.0,0.00038547,50]
[394537655,1763676213960,151.0,0.00038547,50]
[394537656,1763676214256,151.0,0.00038547,50]
[394537657,1763676214575,151.0,0.00038547,50]
[394537658,1763676214861,151.0,0.00038547,50]
[394537660,1763676215160,151.0,0.00038547,50]
[394537661,1763676215468,151.0,0.00038547,50]
[394537663,1763676226131,244.136,0.00038547,50]
[394537664,1763676226418,244.136,0.00038547,50]
[394537665,1763676226904,244.136,0.00038547,50]
[394537666,1763676227207,244.136,0.00038547,50]
[394537667,1763676227519,244.136,0.00038547,50]
[394537668,1763676227792,244.136,0.00038547,50]
[394537669,1763676228087,244.136,0.00038547,50]
[394537670,1763676228379,244.136,0.00038547,50]
[394537671,1763676228673,244.136,0.00038547,50]
[394537672,1763676228954,244.136,0.00038547,50]
[394537673,1763676229240,244.136,0.00038547,50]
[394537674,1763676229538,244.136,0.00038547,50]
[394537675,1763676229858,244.136,0.00038547,50]
[394537676,1763676230150,244.136,0.00038547,50]
[394537677,1763676230447,244.136,0.00038547,50]
[394537678,1763676230719,244.136,0.00038547,50]
[394537679,1763676231262,244.136,0.00038547,50]
[394537680,1763676231332,244.136,0.00038547,50]
[394537681,1763676231664,244.136,0.00038547,50]
[394537682,1763676231956,244.136,0.00038547,50]
[394537683,1763676238986,150.0,0.00014749,30]
[394537684,1763676239442,183.29,0.00015109,30]
[394537685,1763676239868,274.94,0.00015469,30]
[394537686,1763676240291,366.58,0.00015828,30]
[394537693,1763676253821,151.0,0.00038547,50]
[394537694,1763676253865,219.39165,0.00038547,50]
[394537695,1763676254104,151.0,0.00038547,50]
[394537696,1763676254150,219.39165,0.00038547,50]
[394537697,1763676254390,151.0,0.00038547,50]
[394537698,1763676254432,219.39165,0.00038547,50]
[394537699,1763676254699,151.0,0.00038547,50]
[394537700,1763676254745,219.39165,0.00038547,50]
[394537701,1763676255011,151.0,0.00038547,50]
[394537702,1763676255052,219.39165,0.00038547,50]
[394537703,1763676255289,151.0,0.00038547,50]
[394537704,1763676255332,219.39165,0.00038547,50]
[394537705,1763676255571,219.39165,0.00038547,50]
[394537706,1763676255614,151.0,0.00038547,50]
[394537707,1763676255876,219.39165,0.00038547,50]
[394537708,1763676255919,151.0,0.00038547,50]
[394537709,1763676256165,219.39165,0.00038547,50]
[394537710,1763676256207,151.0,0.00038547,50]
[394537711,1763676256464,151.0,0.00038547,50]
[394537712,1763676256547,219.39165,0.00038547,50]
[394537713,1763676256757,151.0,0.00038547,50]
[394537714,1763676256978,219.39165,0.00038547,50]
[394537715,1763676257050,151.0,0.00038547,50]
[394537716,1763676257266,219.39165,0.00038547,50]
[394537717,1763676257561,219.39165,0.00038547,50]
[394537718,1763676257855,219.39165,0.00038547,50]
[394537719,1763676258152,219.39165,0.00038547,50]
[394537720,1763676258486,219.39165,0.00038547,50]
[394537721,1763676258770,219.39165,0.00038547,50]
[394537722,1763676259064,219.39165,0.00038547,50]
[394537723,1763676259337,219.39165,0.00038547,50]
[394537724,1763676259626,219.39165,0.00038547,50]
[394537725,1763676260238,152.334445,0.00038547,50]
[394537727,1763676268608,151.0,0.00038547,50]
[394537728,1763676268985,151.0,0.00038547,50]
[394537729,1763676269279,151.0,0.00038547,50]
[394537730,1763676269591,151.0,0.00038547,50]
[394537731,1763676269901,151.0,0.00038547,50]
[394537732,1763676270199,151.0,0.00038547,50]
[394537733,1763676270503,151.0,0.00038547,50]
[394537734,1763676270812,288.999012,0.00038547,50]
[394537736,1763676271912,151.0,0.00038547,50]
[394537737,1763676272196,151.0,0.00038547,50]
[394537739,1763676272985,151.0,0.00038547,50]
[394537740,1763676273366,151.0,0.00038547,50]
[394537741,1763676273528,151.0,0.00038547,50]
[394537742,1763676273628,151.0,0.00038547,50]
[394537743,1763676273735,151.0,0.00038547,50]
[394537744,1763676273788,151.0,0.00038547,50]